[Event "Early-Titled-Tuesday-Blitz-March-12-2024"]
[Site "Chess.com"]
[Date "2024.03.12"]
[Round "4"]
[White "Jimonios"]
[Black "stollenmonster"]
[Result "0-1"]
[WhiteElo "2676"]
[BlackElo "2876"]
[TimeControl "180+1"]
[EndTime "8:40:43 PDT"]
[Termination "stollenmonster won by resignation"]

1. e4 {[%clk 0:03:00.9]} 1... c5 {[%clk 0:02:56.7]} 2. Nf3 {[%clk 0:03:00.9]}
2... Nf6 {[%clk 0:02:57.3]} 3. e5 {[%clk 0:03:00]} 3... Nd5 {[%clk 0:02:57.6]}
4. Nc3 {[%clk 0:03:00.9]} 4... e6 {[%clk 0:02:57.7]} 5. Ne4 {[%clk 0:02:58.2]}
5... Nc6 {[%clk 0:02:58]} 6. c4 {[%clk 0:02:55]} 6... f5 {[%clk 0:02:58.6]} 7.
Nc3 {[%clk 0:02:32.3]} 7... Nde7 {[%clk 0:02:58.2]} 8. d4 {[%clk 0:02:33]} 8...
cxd4 {[%clk 0:02:59.1]} 9. Nxd4 {[%clk 0:02:33.9]} 9... Nxe5 {[%clk 0:02:57.1]}
10. Ndb5 {[%clk 0:02:29.8]} 10... N7c6 {[%clk 0:02:54.7]} 11. Bf4 {[%clk
0:02:07.7]} 11... a6 {[%clk 0:02:32.2]} 12. Nd6+ {[%clk 0:02:07.1]} 12... Bxd6
{[%clk 0:02:32.3]} 13. Qxd6 {[%clk 0:02:08]} 13... Nf7 {[%clk 0:02:25.8]} 14.
Qd2 {[%clk 0:01:51.3]} 14... e5 {[%clk 0:02:25.4]} 15. Be3 {[%clk 0:01:51]}
15... d6 {[%clk 0:02:24.3]} 16. Nd5 {[%clk 0:01:47]} 16... O-O {[%clk
0:02:11.6]} 17. O-O-O {[%clk 0:01:43.2]} 17... Be6 {[%clk 0:02:07.7]} 18. Bb6
{[%clk 0:01:28.3]} 18... Qd7 {[%clk 0:02:07.4]} 19. Nc7 {[%clk 0:01:26.9]} 19...
Rac8 {[%clk 0:02:04.4]} 20. Nxe6 {[%clk 0:01:26.7]} 20... Qxe6 {[%clk
0:02:05.3]} 21. Kb1 {[%clk 0:01:26.4]} 21... e4 {[%clk 0:01:54.4]} 22. Be2
{[%clk 0:01:17.7]} 22... Nce5 {[%clk 0:01:53.3]} 23. b3 {[%clk 0:01:13.8]} 23...
d5 {[%clk 0:01:53.5]} 24. Bd4 {[%clk 0:01:09.3]} 24... dxc4 {[%clk 0:01:52.7]}
25. Bxe5 {[%clk 0:01:01.8]} 25... Nxe5 {[%clk 0:01:53.6]} 26. Qd5 {[%clk
0:01:02.1]} 26... Qxd5 {[%clk 0:01:53.4]} 27. Rxd5 {[%clk 0:01:03]} 27... Nd3
{[%clk 0:01:47.5]} 28. bxc4 {[%clk 0:00:55.3]} 28... Nxf2 {[%clk 0:01:45.8]} 29.
Rf1 {[%clk 0:00:24.9]} 29... e3 {[%clk 0:01:46.2]} 30. Kc2 {[%clk 0:00:21.6]}
30... g6 {[%clk 0:01:38.9]} 31. Kc3 {[%clk 0:00:20.6]} 31... f4 {[%clk
0:01:32.2]} 32. a4 {[%clk 0:00:20.1]} 32... Ne4+ {[%clk 0:01:10.5]} 33. Kd4
{[%clk 0:00:20.2]} 33... Nd2 {[%clk 0:01:11.4]} 34. Rd1 {[%clk 0:00:17.8]} 34...
Rfe8 {[%clk 0:01:08.8]} 35. Kc3 {[%clk 0:00:10.4]} 35... Re4 {[%clk 0:01:04.9]}
36. Rd4 {[%clk 0:00:09.1]} 36... Rxd4 {[%clk 0:01:02.4]} 37. Kxd4 {[%clk
0:00:10]} 37... Rd8+ {[%clk 0:01:02.5]} 38. Kc5 {[%clk 0:00:09]} 38... Rd7
{[%clk 0:00:51.5]} 39. Bg4 {[%clk 0:00:07.3]} 39... Re7 {[%clk 0:00:49.5]} 40.
Be2 {[%clk 0:00:03.1]} 40... g5 {[%clk 0:00:47.6]} 41. Kd6 {[%clk 0:00:02.4]}
41... Kf7 {[%clk 0:00:45.4]} 42. c5 {[%clk 0:00:02.5]} 42... Kf6 {[%clk
0:00:45.7]} 43. Kd5 {[%clk 0:00:02]} 43... Re5+ {[%clk 0:00:44.1]} 44. Kd4
{[%clk 0:00:02.3]} 44... Nb3+ {[%clk 0:00:43.9]} 45. Kc3 {[%clk 0:00:02.2]}
45... Nxc5 {[%clk 0:00:44.3]} 46. Rd6+ {[%clk 0:00:02.6]} 46... Re6 {[%clk
0:00:44.7]} 47. Rd5 {[%clk 0:00:02.6]} 47... Nxa4+ {[%clk 0:00:41.8]} 48. Kb4
{[%clk 0:00:03.5]} 48... Nb6 {[%clk 0:00:41.6]} 49. Rd8 {[%clk 0:00:04.4]} 49...
Ke7 {[%clk 0:00:36.7]} 50. Rh8 {[%clk 0:00:04]} 50... Rc6 {[%clk 0:00:32.9]} 51.
Rxh7+ {[%clk 0:00:03.7]} 51... Kf6 {[%clk 0:00:33.1]} 52. Rh6+ {[%clk
0:00:03.4]} 52... Ke5 {[%clk 0:00:33]} 53. Rh8 {[%clk 0:00:02.7]} 53... Nd5+
{[%clk 0:00:32.8]} 54. Kb3 {[%clk 0:00:03.4]} 54... Nc3 {[%clk 0:00:32.3]} 55.
Bg4 {[%clk 0:00:03.5]} 55... Nb5 {[%clk 0:00:25.8]} 56. Re8+ {[%clk 0:00:02.4]}
56... Kd6 {[%clk 0:00:26]} 57. Rg8 {[%clk 0:00:02.3]} 57... Nd4+ {[%clk
0:00:25]} 58. Kb2 {[%clk 0:00:03.2]} 58... Rc5 {[%clk 0:00:20.9]} 59. Rd8+
{[%clk 0:00:03.4]} 59... Ke5 {[%clk 0:00:20.9]} 60. Re8+ {[%clk 0:00:04]} 60...
Kd5 {[%clk 0:00:21.6]} 61. Rg8 {[%clk 0:00:03.4]} 61... Kc4 {[%clk 0:00:20.8]}
62. Rxg5 {[%clk 0:00:03.4]} 62... Rxg5 {[%clk 0:00:20.4]} 0-1

[Event "Early-Titled-Tuesday-Blitz-March-12-2024"]
[Site "Chess.com"]
[Date "2024.03.12"]
[Round "4"]
[White "ajedrezsinlimites"]
[Black "Mysterio47"]
[Result "1/2-1/2"]
[WhiteElo "2525"]
[BlackElo "2751"]
[TimeControl "180+1"]
[EndTime "8:40:48 PDT"]
[Termination "Game drawn by stalemate"]

1. e4 {[%clk 0:03:00.9]} 1... e5 {[%clk 0:02:58.9]} 2. Nf3 {[%clk 0:03:00.6]}
2... Nc6 {[%clk 0:02:59.5]} 3. d4 {[%clk 0:03:00]} 3... exd4 {[%clk 0:02:58.6]}
4. Nxd4 {[%clk 0:03:00.9]} 4... Nf6 {[%clk 0:02:57.8]} 5. Nxc6 {[%clk
0:02:54.6]} 5... dxc6 {[%clk 0:02:58.7]} 6. Qxd8+ {[%clk 0:02:53.3]} 6... Kxd8
{[%clk 0:02:59.6]} 7. Bg5 {[%clk 0:02:52.6]} 7... Be7 {[%clk 0:02:59.7]} 8. Nc3
{[%clk 0:02:50]} 8... Be6 {[%clk 0:02:56.8]} 9. O-O-O+ {[%clk 0:02:49.9]} 9...
Nd7 {[%clk 0:02:57.2]} 10. Bxe7+ {[%clk 0:02:48.7]} 10... Kxe7 {[%clk
0:02:58.1]} 11. Be2 {[%clk 0:02:48.6]} 11... a5 {[%clk 0:02:55.1]} 12. a4 {[%clk
0:02:34.7]} 12... Nc5 {[%clk 0:02:53.3]} 13. b3 {[%clk 0:02:32.8]} 13... g5
{[%clk 0:02:50]} 14. h4 {[%clk 0:02:26.5]} 14... h6 {[%clk 0:02:46.8]} 15. Kd2
{[%clk 0:02:22.5]} 15... Rad8+ {[%clk 0:02:40.4]} 16. Ke3 {[%clk 0:02:16.8]}
16... Rxd1 {[%clk 0:02:40.3]} 17. Bxd1 {[%clk 0:02:13.9]} 17... Rg8 {[%clk
0:02:40.1]} 18. hxg5 {[%clk 0:02:08.3]} 18... hxg5 {[%clk 0:02:41]} 19. g3
{[%clk 0:02:07.9]} 19... Na6 {[%clk 0:02:31.7]} 20. Ne2 {[%clk 0:01:35.9]} 20...
c5 {[%clk 0:02:24.4]} 21. c3 {[%clk 0:01:35.3]} 21... c6 {[%clk 0:02:10]} 22. f4
{[%clk 0:01:30.3]} 22... gxf4+ {[%clk 0:02:10.9]} 23. gxf4 {[%clk 0:01:30.2]}
23... b5 {[%clk 0:02:10.5]} 24. f5 {[%clk 0:01:27.3]} 24... Bd7 {[%clk
0:02:10.4]} 25. Kf4 {[%clk 0:01:21]} 25... Rg2 {[%clk 0:01:56.3]} 26. Kf3 {[%clk
0:01:17.1]} 26... Rg8 {[%clk 0:01:53.4]} 27. Rh7 {[%clk 0:01:17]} 27... Nc7
{[%clk 0:01:35.2]} 28. Nf4 {[%clk 0:01:10.9]} 28... Be8 {[%clk 0:01:03.2]} 29.
e5 {[%clk 0:01:08.2]} 29... Nd5 {[%clk 0:00:56.4]} 30. axb5 {[%clk 0:00:57.5]}
30... Nxf4 {[%clk 0:00:48.4]} 31. Kxf4 {[%clk 0:00:58.4]} 31... cxb5 {[%clk
0:00:48.8]} 32. Bh5 {[%clk 0:00:58.4]} 32... a4 {[%clk 0:00:25.3]} 33. bxa4
{[%clk 0:00:37.6]} 33... bxa4 {[%clk 0:00:26.2]} 34. Bxf7 {[%clk 0:00:37.5]}
34... Bxf7 {[%clk 0:00:25.6]} 35. e6 {[%clk 0:00:37.7]} 35... Rf8 {[%clk
0:00:23.3]} 36. Ke5 {[%clk 0:00:37.4]} 36... a3 {[%clk 0:00:22.2]} 37. f6+
{[%clk 0:00:34.4]} 37... Ke8 {[%clk 0:00:21.8]} 38. exf7+ {[%clk 0:00:19.7]}
38... Kd7 {[%clk 0:00:16.5]} 39. Rh2 {[%clk 0:00:17.9]} 39... Rxf7 {[%clk
0:00:05.6]} 40. Rd2+ {[%clk 0:00:18.4]} 40... Kc6 {[%clk 0:00:05.3]} 41. Ke6
{[%clk 0:00:18.9]} 41... Ra7 {[%clk 0:00:04.7]} 42. f7 {[%clk 0:00:18.9]} 42...
Ra8 {[%clk 0:00:04.4]} 43. Ra2 {[%clk 0:00:19.3]} 43... Kb5 {[%clk 0:00:04]} 44.
Rxa3 {[%clk 0:00:18.9]} 44... Rxa3 {[%clk 0:00:04.9]} 45. f8=Q {[%clk
0:00:19.2]} 45... Rxc3 {[%clk 0:00:05.4]} 46. Qb8+ {[%clk 0:00:17.4]} 46... Kc4
{[%clk 0:00:05.2]} 47. Qf4+ {[%clk 0:00:18]} 47... Kb5 {[%clk 0:00:05.3]} 48.
Qd2 {[%clk 0:00:15.1]} 48... Rc4 {[%clk 0:00:04.1]} 49. Qb2+ {[%clk 0:00:13.6]}
49... Rb4 {[%clk 0:00:04.7]} 50. Qe2+ {[%clk 0:00:14.2]} 50... Kb6 {[%clk
0:00:03.3]} 51. Qd3 {[%clk 0:00:12.9]} 51... Rd4 {[%clk 0:00:03.9]} 52. Qc3
{[%clk 0:00:13.1]} 52... Kc6 {[%clk 0:00:04.8]} 53. Ke5 {[%clk 0:00:13.3]} 53...
Kb5 {[%clk 0:00:05.7]} 54. Qb3+ {[%clk 0:00:12.9]} 54... Kc6 {[%clk 0:00:06.1]}
55. Qa3 {[%clk 0:00:12.2]} 55... Kb5 {[%clk 0:00:06.6]} 56. Qa7 {[%clk 0:00:12]}
56... Kc6 {[%clk 0:00:06.9]} 57. Qa6+ {[%clk 0:00:12.3]} 57... Kc7 {[%clk
0:00:06.6]} 58. Qb5 {[%clk 0:00:12.5]} 58... Rd7 {[%clk 0:00:03.7]} 59. Qxc5+
{[%clk 0:00:12.7]} 59... Kd8 {[%clk 0:00:04.6]} 60. Ke6 {[%clk 0:00:12.7]} 60...
Rh7 {[%clk 0:00:03.2]} 61. Qd6+ {[%clk 0:00:11.7]} 61... Kc8 {[%clk 0:00:03.4]}
62. Qc6+ {[%clk 0:00:12]} 62... Rc7 {[%clk 0:00:02.9]} 63. Qa6+ {[%clk
0:00:12.1]} 63... Kb8 {[%clk 0:00:03.2]} 64. Kd6 {[%clk 0:00:12.1]} 64... Rd7+
{[%clk 0:00:03.3]} 65. Kc6 {[%clk 0:00:11.6]} 65... Rd6+ {[%clk 0:00:03.3]} 66.
Kxd6 {[%clk 0:00:11.4]} 1/2-1/2

[Event "Early-Titled-Tuesday-Blitz-March-12-2024"]
[Site "Chess.com"]
[Date "2024.03.12"]
[Round "4"]
[White "luckyswitchback"]
[Black "rezamahdavi2008"]
[Result "1-0"]
[WhiteElo "2685"]
[BlackElo "2858"]
[TimeControl "180+1"]
[EndTime "8:40:49 PDT"]
[Termination "luckyswitchback won by checkmate"]

1. e4 {[%clk 0:03:00.9]} 1... c5 {[%clk 0:02:59.3]} 2. Nf3 {[%clk 0:03:00.9]}
2... d6 {[%clk 0:02:58.3]} 3. Bb5+ {[%clk 0:03:00.7]} 3... Nd7 {[%clk
0:02:57.9]} 4. O-O {[%clk 0:02:55.1]} 4... a6 {[%clk 0:02:54.6]} 5. Bxd7+ {[%clk
0:02:54.7]} 5... Bxd7 {[%clk 0:02:53]} 6. c3 {[%clk 0:02:55.4]} 6... e6 {[%clk
0:02:47.3]} 7. d4 {[%clk 0:02:55.1]} 7... Ne7 {[%clk 0:02:42.9]} 8. a4 {[%clk
0:02:48.5]} 8... Ng6 {[%clk 0:02:42.5]} 9. dxc5 {[%clk 0:02:33.3]} 9... dxc5
{[%clk 0:02:41.2]} 10. Nbd2 {[%clk 0:02:33.8]} 10... Bc6 {[%clk 0:02:34.3]} 11.
Qc2 {[%clk 0:02:31.8]} 11... Bd6 {[%clk 0:02:26.1]} 12. Nc4 {[%clk 0:02:28.6]}
12... Bc7 {[%clk 0:02:11.3]} 13. Rd1 {[%clk 0:02:28.3]} 13... Qe7 {[%clk
0:02:07.2]} 14. Bg5 {[%clk 0:02:20.6]} 14... f6 {[%clk 0:02:05.3]} 15. Be3
{[%clk 0:02:21]} 15... O-O {[%clk 0:01:51.3]} 16. a5 {[%clk 0:02:18.6]} 16...
Rad8 {[%clk 0:01:50.2]} 17. Nfd2 {[%clk 0:02:15]} 17... Bb5 {[%clk 0:01:36.9]}
18. Qb3 {[%clk 0:01:45.7]} 18... Kh8 {[%clk 0:01:30.3]} 19. Qa3 {[%clk
0:01:43.8]} 19... Bxc4 {[%clk 0:01:00.5]} 20. Nxc4 {[%clk 0:01:40.6]} 20...
Rxd1+ {[%clk 0:00:58.1]} 21. Rxd1 {[%clk 0:01:40.1]} 21... Rd8 {[%clk 0:00:59]}
22. Rf1 {[%clk 0:01:31.6]} 22... Ne5 {[%clk 0:00:48.9]} 23. Nxe5 {[%clk
0:01:29.6]} 23... Bxe5 {[%clk 0:00:49.8]} 24. Bxc5 {[%clk 0:01:29.2]} 24... Qd7
{[%clk 0:00:44.8]} 25. Bb6 {[%clk 0:01:23.5]} 25... Rc8 {[%clk 0:00:31.7]} 26.
Qb3 {[%clk 0:01:23.7]} 26... Qc6 {[%clk 0:00:24.8]} 27. g3 {[%clk 0:01:16.1]}
27... Re8 {[%clk 0:00:21.6]} 28. Rd1 {[%clk 0:01:11]} 28... h6 {[%clk
0:00:19.3]} 29. Qc2 {[%clk 0:01:04.9]} 29... Kg8 {[%clk 0:00:15.9]} 30. Qd3
{[%clk 0:01:04.3]} 30... Bc7 {[%clk 0:00:12.3]} 31. Qd7 {[%clk 0:01:03]} 31...
Bxb6 {[%clk 0:00:10.9]} 32. axb6 {[%clk 0:00:56.5]} 32... Rc8 {[%clk 0:00:08.7]}
33. Qe7 {[%clk 0:00:49.8]} 33... Qxe4 {[%clk 0:00:09.2]} 34. h4 {[%clk
0:00:26.9]} 34... Kh7 {[%clk 0:00:09.5]} 35. Rd7 {[%clk 0:00:26.3]} 35... Rg8
{[%clk 0:00:10.1]} 36. Qxf6 {[%clk 0:00:23]} 36... Qb1+ {[%clk 0:00:07.4]} 37.
Kg2 {[%clk 0:00:23.2]} 37... Qxb2 {[%clk 0:00:08.3]} 38. Rxb7 {[%clk 0:00:23.1]}
38... Qb3 {[%clk 0:00:05.6]} 39. Qf3 {[%clk 0:00:20.6]} 39... a5 {[%clk
0:00:04.9]} 40. Qe4+ {[%clk 0:00:20.6]} 40... Kh8 {[%clk 0:00:05]} 41. c4 {[%clk
0:00:16.5]} 41... a4 {[%clk 0:00:04.9]} 42. c5 {[%clk 0:00:17.2]} 42... a3
{[%clk 0:00:05.5]} 43. Ra7 {[%clk 0:00:17.8]} 43... a2 {[%clk 0:00:05]} 44. Qe5
{[%clk 0:00:16.6]} 44... Qb5 {[%clk 0:00:02.6]} 45. Rxa2 {[%clk 0:00:16]} 45...
Qc6+ {[%clk 0:00:03.3]} 46. Kg1 {[%clk 0:00:15.5]} 46... Qf3 {[%clk 0:00:02.1]}
47. Qe3 {[%clk 0:00:13.8]} 47... Qd5 {[%clk 0:00:01.7]} 48. Rd2 {[%clk
0:00:13.4]} 48... Qc6 {[%clk 0:00:02.1]} 49. Re2 {[%clk 0:00:13.6]} 49... Rd8
{[%clk 0:00:01.9]} 50. Re1 {[%clk 0:00:11.9]} 50... Re8 {[%clk 0:00:01.7]} 51.
Rd1 {[%clk 0:00:10.6]} 51... Ra8 {[%clk 0:00:01.5]} 52. Kh2 {[%clk 0:00:10.7]}
52... Rf8 {[%clk 0:00:01.5]} 53. Re1 {[%clk 0:00:09.7]} 53... Rf7 {[%clk
0:00:01.5]} 54. f4 {[%clk 0:00:08.7]} 54... Rd7 {[%clk 0:00:01.7]} 55. Re2
{[%clk 0:00:09.1]} 55... Rd1 {[%clk 0:00:01.6]} 56. Qe4 {[%clk 0:00:09.4]} 56...
Qxc5 {[%clk 0:00:01.7]} 57. b7 {[%clk 0:00:09.9]} 57... Qg1+ {[%clk 0:00:01.9]}
58. Kh3 {[%clk 0:00:10.6]} 58... Qf1+ {[%clk 0:00:02.8]} 59. Kg4 {[%clk
0:00:11]} 59... Rb1 {[%clk 0:00:03.3]} 60. Rd2 {[%clk 0:00:07.7]} 60... Qa6
{[%clk 0:00:01.3]} 61. Rd8# {[%clk 0:00:07.3]} 1-0

[Event "Early-Titled-Tuesday-Blitz-March-12-2024"]
[Site "Chess.com"]
[Date "2024.03.12"]
[Round "4"]
[White "Mops_2004"]
[Black "ahkashefi2800"]
[Result "1-0"]
[WhiteElo "2841"]
[BlackElo "2640"]
[TimeControl "180+1"]
[EndTime "8:40:58 PDT"]
[Termination "Mops_2004 won by checkmate"]

1. g3 {[%clk 0:03:00.9]} 1... d5 {[%clk 0:02:56.7]} 2. Nf3 {[%clk 0:03:00.6]}
2... c6 {[%clk 0:02:57.6]} 3. Bg2 {[%clk 0:03:00.7]} 3... Nf6 {[%clk 0:02:58.2]}
4. O-O {[%clk 0:03:01.1]} 4... Bf5 {[%clk 0:02:58.8]} 5. c4 {[%clk 0:03:00.6]}
5... e6 {[%clk 0:02:59]} 6. Qb3 {[%clk 0:03:01.3]} 6... Qb6 {[%clk 0:02:58.6]}
7. d3 {[%clk 0:03:01.9]} 7... Nbd7 {[%clk 0:02:58.5]} 8. cxd5 {[%clk 0:03:01.7]}
8... exd5 {[%clk 0:02:58.4]} 9. Qc2 {[%clk 0:03:01.8]} 9... Be7 {[%clk
0:02:58.1]} 10. Nc3 {[%clk 0:03:02.4]} 10... O-O {[%clk 0:02:58]} 11. e4 {[%clk
0:03:03.1]} 11... dxe4 {[%clk 0:02:57.9]} 12. dxe4 {[%clk 0:03:04]} 12... Bg6
{[%clk 0:02:58.8]} 13. Nh4 {[%clk 0:03:04.5]} 13... Rad8 {[%clk 0:02:56.8]} 14.
Bf4 {[%clk 0:03:03.4]} 14... Nc5 {[%clk 0:02:53.4]} 15. Nxg6 {[%clk 0:03:02]}
15... hxg6 {[%clk 0:02:52.7]} 16. Rad1 {[%clk 0:02:52.8]} 16... Ne6 {[%clk
0:02:52.5]} 17. Be3 {[%clk 0:02:52.8]} 17... Qa5 {[%clk 0:02:50.5]} 18. Qa4
{[%clk 0:02:01.9]} 18... Qxa4 {[%clk 0:02:40.3]} 19. Nxa4 {[%clk 0:02:01.9]}
19... b6 {[%clk 0:02:28.2]} 20. h3 {[%clk 0:01:51.1]} 20... Nd7 {[%clk
0:02:23.3]} 21. f4 {[%clk 0:01:49]} 21... Ndc5 {[%clk 0:02:14.6]} 22. Nc3 {[%clk
0:01:49]} 22... Nd3 {[%clk 0:02:12]} 23. Rd2 {[%clk 0:01:34.3]} 23... Bc5 {[%clk
0:02:04.2]} 24. Bxc5 {[%clk 0:01:33.3]} 24... Ndxc5 {[%clk 0:01:53.1]} 25. Rfd1
{[%clk 0:01:32.9]} 25... Rxd2 {[%clk 0:01:53]} 26. Rxd2 {[%clk 0:01:33.8]} 26...
Rd8 {[%clk 0:01:53.2]} 27. Rxd8+ {[%clk 0:01:33.8]} 27... Nxd8 {[%clk
0:01:54.1]} 28. e5 {[%clk 0:01:20.9]} 28... Kf8 {[%clk 0:01:54.1]} 29. b3 {[%clk
0:01:12.7]} 29... Ke7 {[%clk 0:01:53.5]} 30. Kf2 {[%clk 0:01:12.4]} 30... f6
{[%clk 0:01:46.2]} 31. exf6+ {[%clk 0:01:12]} 31... gxf6 {[%clk 0:01:45.2]} 32.
Ke3 {[%clk 0:01:11.9]} 32... Kd6 {[%clk 0:01:38.5]} 33. Ne4+ {[%clk 0:01:06.2]}
33... Nxe4 {[%clk 0:01:37.9]} 34. Bxe4 {[%clk 0:01:07.1]} 34... f5 {[%clk
0:01:35.1]} 35. Bd3 {[%clk 0:01:05.1]} 35... b5 {[%clk 0:01:28.5]} 36. g4 {[%clk
0:01:01.3]} 36... Ke6 {[%clk 0:01:26.4]} 37. Kd4 {[%clk 0:00:49.6]} 37... Nb7
{[%clk 0:01:26]} 38. b4 {[%clk 0:00:49.9]} 38... Kf6 {[%clk 0:01:01.1]} 39. gxf5
{[%clk 0:00:49.4]} 39... gxf5 {[%clk 0:01:01.2]} 40. a3 {[%clk 0:00:46.3]} 40...
Ke6 {[%clk 0:01:00.9]} 41. h4 {[%clk 0:00:41.8]} 41... a5 {[%clk 0:00:50.4]} 42.
h5 {[%clk 0:00:36.8]} 42... axb4 {[%clk 0:00:41.8]} 43. axb4 {[%clk 0:00:37.7]}
43... Kf6 {[%clk 0:00:42]} 44. Bc2 {[%clk 0:00:30.9]} 44... Nd8 {[%clk
0:00:39.6]} 45. Bb3 {[%clk 0:00:20.9]} 45... Kg7 {[%clk 0:00:39.6]} 46. Ke5
{[%clk 0:00:17.1]} 46... Kh6 {[%clk 0:00:36.1]} 47. Kxf5 {[%clk 0:00:17.3]}
47... Kxh5 {[%clk 0:00:32.7]} 48. Kf6 {[%clk 0:00:13.9]} 48... Nb7 {[%clk
0:00:24.4]} 49. f5 {[%clk 0:00:11.6]} 49... Nd6 {[%clk 0:00:01.8]} 50. Ke5
{[%clk 0:00:10.9]} 50... Ne8 {[%clk 0:00:01.7]} 51. f6 {[%clk 0:00:10.2]} 51...
Nxf6 {[%clk 0:00:01.1]} 52. Kxf6 {[%clk 0:00:11.1]} 52... Kg4 {[%clk 0:00:01.3]}
53. Ke5 {[%clk 0:00:11.5]} 53... Kg5 {[%clk 0:00:01.2]} 54. Kd6 {[%clk
0:00:10.3]} 54... c5 {[%clk 0:00:02.1]} 55. Kxc5 {[%clk 0:00:10.5]} 55... Kf6
{[%clk 0:00:02.6]} 56. Kxb5 {[%clk 0:00:11.4]} 56... Ke7 {[%clk 0:00:03.5]} 57.
Ka6 {[%clk 0:00:11.8]} 57... Kd8 {[%clk 0:00:04.4]} 58. Ka7 {[%clk 0:00:11.9]}
58... Kc7 {[%clk 0:00:05.3]} 59. b5 {[%clk 0:00:12.4]} 59... Kd6 {[%clk
0:00:02.5]} 60. b6 {[%clk 0:00:12.6]} 60... Kc5 {[%clk 0:00:03.4]} 61. b7 {[%clk
0:00:12.9]} 61... Kb4 {[%clk 0:00:03.5]} 62. b8=Q+ {[%clk 0:00:13.1]} 62... Ka5
{[%clk 0:00:04.1]} 63. Be6 {[%clk 0:00:11.9]} 63... Ka4 {[%clk 0:00:03.9]} 64.
Qb6 {[%clk 0:00:11.9]} 64... Ka3 {[%clk 0:00:01.2]} 65. Qb3# {[%clk 0:00:09.5]}
1-0

[Event "Early-Titled-Tuesday-Blitz-March-12-2024"]
[Site "Chess.com"]
[Date "2024.03.12"]
[Round "4"]
[White "Ginger_GM"]
[Black "Andrei_Skvortsov"]
[Result "1-0"]
[WhiteElo "2583"]
[BlackElo "2766"]
[TimeControl "180+1"]
[EndTime "8:40:59 PDT"]
[Termination "Ginger_GM won by resignation"]

1. d4 {[%clk 0:03:00.9]} 1... d5 {[%clk 0:02:59.4]} 2. c4 {[%clk 0:02:59.7]}
2... e6 {[%clk 0:02:59.5]} 3. Nc3 {[%clk 0:02:59.1]} 3... a6 {[%clk 0:02:59]} 4.
c5 {[%clk 0:02:55.1]} 4... b6 {[%clk 0:02:55.2]} 5. cxb6 {[%clk 0:02:55]} 5...
cxb6 {[%clk 0:02:54.7]} 6. Bf4 {[%clk 0:02:50.8]} 6... Bb7 {[%clk 0:02:53.9]} 7.
Nf3 {[%clk 0:02:49.6]} 7... Nc6 {[%clk 0:02:53.6]} 8. e3 {[%clk 0:02:49.3]} 8...
Bd6 {[%clk 0:02:54]} 9. Bg3 {[%clk 0:02:46.1]} 9... Bxg3 {[%clk 0:02:53.1]} 10.
hxg3 {[%clk 0:02:46.2]} 10... Nf6 {[%clk 0:02:53.6]} 11. Bd3 {[%clk 0:02:45.1]}
11... Qd6 {[%clk 0:02:52.2]} 12. Rc1 {[%clk 0:02:42.6]} 12... b5 {[%clk
0:02:51.3]} 13. a4 {[%clk 0:02:33.9]} 13... b4 {[%clk 0:02:51.1]} 14. Nb1 {[%clk
0:02:30.5]} 14... O-O {[%clk 0:02:49.7]} 15. Ne5 {[%clk 0:02:14.2]} 15... g6
{[%clk 0:02:32.8]} 16. f4 {[%clk 0:02:05]} 16... Rfc8 {[%clk 0:02:30.8]} 17. Nd2
{[%clk 0:02:01.5]} 17... Na5 {[%clk 0:02:29.5]} 18. g4 {[%clk 0:01:37.3]} 18...
Rxc1 {[%clk 0:02:28.7]} 19. Qxc1 {[%clk 0:01:37.5]} 19... Rc8 {[%clk 0:02:27.6]}
20. Qd1 {[%clk 0:01:37.8]} 20... Ne4 {[%clk 0:02:25.9]} 21. Bxe4 {[%clk
0:01:26.3]} 21... dxe4 {[%clk 0:02:24.7]} 22. g5 {[%clk 0:01:26.5]} 22... Qc7
{[%clk 0:01:47.3]} 23. Ng4 {[%clk 0:01:21.3]} 23... Qc2 {[%clk 0:01:45.5]} 24.
Nf6+ {[%clk 0:01:20.7]} 24... Kf8 {[%clk 0:01:45.8]} 25. Qxc2 {[%clk 0:01:14.8]}
25... Rxc2 {[%clk 0:01:44.9]} 26. Rxh7 {[%clk 0:01:15.1]} 26... Rxb2 {[%clk
0:01:27.7]} 27. Nd7+ {[%clk 0:00:45.4]} 27... Kg8 {[%clk 0:01:21.2]} 28. Nf6+
{[%clk 0:00:43.6]} 28... Kf8 {[%clk 0:01:21.8]} 29. Ndxe4 {[%clk 0:00:38.8]}
29... Bxe4 {[%clk 0:01:20.9]} 30. Nxe4 {[%clk 0:00:36]} 30... Nc4 {[%clk
0:01:20.6]} 31. Rh8+ {[%clk 0:00:26.8]} 31... Ke7 {[%clk 0:01:15.8]} 32. Rb8
{[%clk 0:00:26.9]} 32... Nxe3 {[%clk 0:01:14.2]} 33. Rb7+ {[%clk 0:00:27.1]}
33... Kf8 {[%clk 0:01:11.6]} 34. Rb8+ {[%clk 0:00:24]} 34... Ke7 {[%clk
0:01:10.7]} 35. Rb7+ {[%clk 0:00:24.2]} 35... Kd8 {[%clk 0:01:10.9]} 36. Nd6
{[%clk 0:00:24.2]} 36... Rxg2 {[%clk 0:01:03.2]} 37. Nxf7+ {[%clk 0:00:23.7]}
37... Ke8 {[%clk 0:01:03.8]} 38. Nd6+ {[%clk 0:00:24.4]} 38... Kf8 {[%clk
0:01:04.5]} 39. Rxb4 {[%clk 0:00:25]} 39... Nc2+ {[%clk 0:01:03]} 40. Kf1 {[%clk
0:00:24.3]} 40... Ne3+ {[%clk 0:01:03]} 41. Ke1 {[%clk 0:00:24.5]} 41... Ke7
{[%clk 0:01:03.5]} 42. Ne4 {[%clk 0:00:22]} 42... Nc2+ {[%clk 0:00:57.5]} 43.
Kf1 {[%clk 0:00:22.5]} 43... Ne3+ {[%clk 0:00:58]} 44. Ke1 {[%clk 0:00:23.1]}
44... Nd5 {[%clk 0:00:35.1]} 45. Rb7+ {[%clk 0:00:22.7]} 45... Kd8 {[%clk
0:00:35.5]} 46. Nc5 {[%clk 0:00:21.7]} 46... Kc8 {[%clk 0:00:31.2]} 47. Rf7
{[%clk 0:00:21.1]} 47... Rg4 {[%clk 0:00:26.3]} 48. Nxe6 {[%clk 0:00:21.3]}
48... Rg3 {[%clk 0:00:24]} 49. Nc5 {[%clk 0:00:21]} 49... a5 {[%clk 0:00:24.5]}
50. Kd2 {[%clk 0:00:19.2]} 50... Nb6 {[%clk 0:00:13.3]} 51. Rf6 {[%clk
0:00:17.9]} 51... Nd5 {[%clk 0:00:13.7]} 52. Rxg6 {[%clk 0:00:17.5]} 52... Nxf4
{[%clk 0:00:14.1]} 53. Rf6 {[%clk 0:00:17.8]} 53... Nd5 {[%clk 0:00:14.5]} 54.
Rf5 {[%clk 0:00:17.3]} 54... Nb4 {[%clk 0:00:14.5]} 55. Ne4 {[%clk 0:00:16]}
55... Rd3+ {[%clk 0:00:13.2]} 56. Ke2 {[%clk 0:00:15.9]} 56... Rxd4 {[%clk
0:00:13.9]} 57. Nf6 {[%clk 0:00:15.3]} 57... Rc4 {[%clk 0:00:08]} 58. g6 {[%clk
0:00:15.6]} 58... Rc2+ {[%clk 0:00:08.2]} 59. Kf3 {[%clk 0:00:15.9]} 59... Rc3+
{[%clk 0:00:08.7]} 60. Kg4 {[%clk 0:00:16]} 60... Rc4+ {[%clk 0:00:09.4]} 61.
Rf4 {[%clk 0:00:16.3]} 61... Rc1 {[%clk 0:00:09.5]} 62. Kf5 {[%clk 0:00:16]}
62... Rg1 {[%clk 0:00:09.8]} 63. Rg4 {[%clk 0:00:16.6]} 63... Rxg4 {[%clk
0:00:09.3]} 64. Kxg4 {[%clk 0:00:16.6]} 64... Nc6 {[%clk 0:00:09.3]} 65. g7
{[%clk 0:00:16.8]} 65... Ne7 {[%clk 0:00:09.7]} 66. Nd5 {[%clk 0:00:16.7]} 66...
Ng8 {[%clk 0:00:09.3]} 67. Kf5 {[%clk 0:00:17.3]} 67... Kd7 {[%clk 0:00:09.9]}
68. Kg6 {[%clk 0:00:17.8]} 68... Ke6 {[%clk 0:00:10.1]} 69. Nf4+ {[%clk
0:00:18.1]} 69... Ke7 {[%clk 0:00:10]} 70. Nd3 {[%clk 0:00:17.5]} 70... Ke6
{[%clk 0:00:09]} 71. Nc5+ {[%clk 0:00:17.9]} 71... Ke7 {[%clk 0:00:08]} 72. Nb3
{[%clk 0:00:18.3]} 72... Ke6 {[%clk 0:00:08]} 73. Nxa5 {[%clk 0:00:18.9]} 73...
Ne7+ {[%clk 0:00:08.5]} 74. Kh7 {[%clk 0:00:18.6]} 74... Kf7 {[%clk 0:00:09.1]}
75. Nc4 {[%clk 0:00:19.1]} 75... Ke6 {[%clk 0:00:07.2]} 76. a5 {[%clk
0:00:19.4]} 76... Kf6 {[%clk 0:00:07.6]} 77. a6 {[%clk 0:00:19.5]} 1-0